{"text_format":"3","workbook":"xlsx","n_sheets":8,"sheets":["Petunjuk","Rutinitas Reguler","Kenalan Sesekali","Prospek Potensial","Paket Jaringan Q1","Paket Jaringan Q2","Paket Jaringan Q3","Paket Jaringan Q4"],"not_rendered":{"defined_names":7},"read":"whole","date_system":"1900"}

{"sheet":"Petunjuk","index":0,"n_rows":17,"n_cols":5,"rows_kept":17,"merged":[[0,0,0,2],[1,1,1,6],[2,1,2,6],[3,1,3,6],[4,1,4,6],[5,1,5,6],[6,1,6,6],[7,1,7,6],[8,1,8,6],[9,1,9,6],[10,1,10,6],[11,1,11,6]]}
["Pelacak Kontak",null,null,"Petunjuk"]
[null,"1. Tentukan kategori mana yang menjadi tujuan kontak Anda:"]
[null,"• Rutinitas Reguler - orang-orang yang ingin Anda hubungi secara teratur"]
[null,"• Kenalan Sesekali - orang yang ingin Anda hubungi beberapa kali dalam setahun"]
[null,"• Prospek Potensial - orang/perusahaan yang ingin Anda simpan untuk dihubungi saat waktunya tiba"]
[null,"2. Buka tab lembar kerja yang sesuai."]
[null,"3. Masukkan info mereka (untuk membuat baris baru dalam sel, tekan Alt+Enter di Windows atau Option+Return di Mac)."]
[null,"Lihat di sini untuk instruksi baris baru untuk aplikasi Excel seluler."]
[null,"4. Di kolom Tanggal Tindak Lanjut,hapus contoh tanggal/rumus, masukkan saat Anda ingin menghubungi mereka, \nlalu tekan Enter."]
[null,"5. Kolom Tanggal Tindak Lanjut akan menampilkan warna merah ketika tanggal sudah sangat dekat, kuning saat mendekati, dan \nhijau saat Anda memiliki banyak waktu."]
[null,"6. Saat tanggal tindak lanjut semakin dekat, warna akan berubah."]
[null,"7. Setelah Anda menghubungi kontak, ketik YA di kolom Selesai?. Tanggal akan berwarna abu-abu. "]
[null,"8. Jika Anda ingin menghubungi mereka lagi, ganti YA dengan TIDAK, lalu ketikkan Tanggal Tindak Lanjut  baru."]
[null,null,"Merah","Kuning","Hijau"]
[null,"Rutinitas Reguler","1-3 hari lagi","4-7 hari lagi","8-14+ hari lagi"]
[null,"Kenalan Sesekali","1-7 hari lagi","8-45 hari lagi","46-90+ hari lagi"]
[null,"Prospek Potensial","1-14 hari lagi","15-60 hari lagi","60-120+ hari lagi"]

{"sheet":"Rutinitas Reguler","index":1,"n_rows":7,"n_cols":8,"rows_kept":7,"merged":[[0,0,0,2]]}
["Pelacak Kontak",null,null,"Rutinitas Reguler"]
[]
["Nama","Perusahaan","Informasi Kontak","Tempat Kami Bertemu","Catatan","Tanggal Tindak Lanjut","Selesai","Catatan Dari Percakapan"]
["Benteng Garth","Adventure Works","Manajer Proyek\ngarth@adventure-works.com\n(234) 555-0134\nadventure-works.com\nlinkedin.com/in/garth-fort","Pameran dagang 2010","Tanyakan tentang putri Sandy dan bagaimana renovasi berlangsung. Tidak menyukai grup yang besar dan makanan pedas.",{"$f":"TODAY()+8","v":"2021-07-22"},"TIDAK"]
["Nama","Nama Perusahaan","Jabatan\nAlamat email\nNomor telepon\nSitus web\nTautan profil sosial\n","Lokasi","Masukkan catatan apa pun yang Anda inginkan untuk mengingat tentang orang ini; tempat Anda bertemu, apa yang Anda bicarakan, apa yang ingin Anda munculkan saat Anda berbicara lagi, dll.",{"$f":"TODAY()-3","v":"2021-07-11"},"YA"]
["Nama","Nama Perusahaan","Jabatan\nAlamat email\nNomor telepon\nSitus web\nTautan profil sosial\n","Lokasi","Masukkan catatan apa pun yang Anda inginkan untuk mengingat tentang orang ini; tempat Anda bertemu, apa yang Anda bicarakan, apa yang ingin Anda munculkan saat Anda berbicara lagi, dll.",{"$f":"TODAY()+-3","v":"2021-07-11"},"TIDAK"]
["Nama","Nama Perusahaan","Jabatan\nAlamat email\nNomor telepon\nSitus web\nTautan profil sosial\n","Lokasi","Masukkan catatan apa pun yang Anda inginkan untuk mengingat tentang orang ini; tempat Anda bertemu, apa yang Anda bicarakan, apa yang ingin Anda munculkan saat Anda berbicara lagi, dll.",{"$f":"TODAY()+6","v":"2021-07-20"},"TIDAK"]

{"sheet":"Kenalan Sesekali","index":2,"n_rows":7,"n_cols":8,"rows_kept":7,"merged":[[0,0,0,2]]}
["Pelacak Kontak",null,null,"Kenalan Sesekali"]
[]
["Nama","Perusahaan","Informasi Kontak","Tempat Kami Bertemu","Catatan","Tanggal Tindak Lanjut","Selesai","Catatan Dari Percakapan"]
["Benteng Garth","Adventure Works","Manajer Resourcing\ngarth@adventure-works.com\n(434) 555-0123\nwww.adventure-works.com\nlinkedin.com/in/garth-fort","Liburan di Vermont 2016","Berguna untuk kontak perekrutan serta pertanyaan pemasaran",{"$f":"TODAY()+90","v":"2021-10-12"},"TIDAK"]
["Nama","Nama Perusahaan","Jabatan\nAlamat email\nNomor telepon\nSitus web\nTautan profil sosial\n","Lokasi","Masukkan catatan apa pun yang Anda inginkan untuk mengingat tentang orang ini; tempat Anda bertemu, apa yang Anda bicarakan, apa yang ingin Anda munculkan saat Anda berbicara lagi, dll.",{"$f":"TODAY()-3","v":"2021-07-11"},"YA"]
["Nama","Nama Perusahaan","Jabatan\nAlamat email\nNomor telepon\nSitus web\nTautan profil sosial\n","Lokasi","Masukkan catatan apa pun yang Anda inginkan untuk mengingat tentang orang ini; tempat Anda bertemu, apa yang Anda bicarakan, apa yang ingin Anda munculkan saat Anda berbicara lagi, dll.",{"$f":"TODAY()+-3","v":"2021-07-11"},"TIDAK"]
["Nama","Nama Perusahaan","Jabatan\nAlamat email\nNomor telepon\nSitus web\nTautan profil sosial\n","Lokasi","Masukkan catatan apa pun yang Anda inginkan untuk mengingat tentang orang ini; tempat Anda bertemu, apa yang Anda bicarakan, apa yang ingin Anda munculkan saat Anda berbicara lagi, dll.",{"$f":"TODAY()+40","v":"2021-08-23"},"TIDAK"]

{"sheet":"Prospek Potensial","index":3,"n_rows":7,"n_cols":8,"rows_kept":7,"merged":[[0,0,0,2]]}
["Pelacak Kontak",null,null,"Prospek Potensial"]
[]
["Nama","Perusahaan","Informasi Kontak","Tempat Kami Bertemu","Catatan","Tanggal Tindak Lanjut","Selesai","Catatan Dari Percakapan"]
["Benteng Garth","Pekerja lepas","Designer\nseseorang@contoh.com\n425-555-0123\ncontoh.com\nlinkedin.com/in/garth-fort","Wisuda putra 2016","Grad terbaru - sangat terampil. Mungkin berguna untuk klien mendatang.",{"$f":"TODAY()+89","v":"2021-10-11"},"TIDAK"]
["Nama","Nama Perusahaan","Jabatan\nAlamat email\nNomor telepon\nSitus web\nTautan profil sosial\n","Lokasi","Masukkan catatan apa pun yang Anda inginkan untuk mengingat tentang orang ini; tempat Anda bertemu, apa yang Anda bicarakan, apa yang ingin Anda munculkan saat Anda berbicara lagi, dll.",{"$f":"TODAY()-3","v":"2021-07-11"},"YA"]
["Nama","Nama Perusahaan","Jabatan\nAlamat email\nNomor telepon\nSitus web\nTautan profil sosial\n","Lokasi","Masukkan catatan apa pun yang Anda inginkan untuk mengingat tentang orang ini; tempat Anda bertemu, apa yang Anda bicarakan, apa yang ingin Anda munculkan saat Anda berbicara lagi, dll.",{"$f":"TODAY()+-3","v":"2021-07-11"},"TIDAK"]
["Nama","Nama Perusahaan","Jabatan\nAlamat email\nNomor telepon\nSitus web\nTautan profil sosial\n","Lokasi","Masukkan catatan apa pun yang Anda inginkan untuk mengingat tentang orang ini; tempat Anda bertemu, apa yang Anda bicarakan, apa yang ingin Anda munculkan saat Anda berbicara lagi, dll.",{"$f":"TODAY()+30","v":"2021-08-13"},"TIDAK"]

{"sheet":"Paket Jaringan Q1","index":4,"n_rows":20,"n_cols":6,"rows_kept":20,"merged":[[0,0,0,3],[2,0,2,3],[4,0,4,3],[14,5,17,5],[18,0,18,3]]}
["Rencana Ekspansi Jaringan"]
["Petunjuk"]
["Tulis cara Anda berencana memperluas jaringan kuartal ini (misalnya, melakukan lebih banyak panggilan telepon, melakukan perjalanan lainnya, dll.). Kemudian, setiap kali Anda mendapatkan kontak baru, ubah nomor Kontak Aktual yang Dibuat untuk melacak dan melihat seberapa dekat Anda dengan target."]
[]
["Bagaimana saya berencana untuk memperluas jaringan saya pada kuartal ini"]
["1. Lakukan lebih banyak panggilan telepon"]
["2. Bepergian lebih banyak"]
[]
[]
[]
[]
[]
[]
["Sasaran Kontak Triwulanan","Tenggat Waktu","Kontak Kuartalan Aktual Dibuat","Hasil"]
[20,{"$f":"TODAY()","v":"2021-07-14"},12,{"$f":"IF(tblGoals[[#This Row],[Sasaran Kontak Triwulanan]]>0,tblGoals[[#This Row],[Kontak Kuartalan Aktual Dibuat]]/tblGoals[[#This Row],[Sasaran Kontak Triwulanan]],\"\")","v":{"v":0.6,"d":"60%"}},null,"0% - 25%\n26% - 50%\n51% - 75%\n76% - 100%\n\nPerubahan warna berdasarkan persentase yang tercapai"]
[{"$nulls":3},{"$f":"IF(tblGoals[[#This Row],[Sasaran Kontak Triwulanan]]>0,tblGoals[[#This Row],[Kontak Kuartalan Aktual Dibuat]]/tblGoals[[#This Row],[Sasaran Kontak Triwulanan]],\"\")","v":""}]
[{"$nulls":3},{"$f":"IF(tblGoals[[#This Row],[Sasaran Kontak Triwulanan]]>0,tblGoals[[#This Row],[Kontak Kuartalan Aktual Dibuat]]/tblGoals[[#This Row],[Sasaran Kontak Triwulanan]],\"\")","v":""}]
[]
["Refleksi pada hasil / Catatan untuk perbaikan"]
["Sudah dekat. Coba lakukan panggilan sekitar waktu makan siang saja."]

{"sheet":"Paket Jaringan Q2","index":5,"n_rows":20,"n_cols":6,"rows_kept":20,"merged":[[0,0,0,3],[2,0,2,3],[4,0,4,3],[14,5,17,5],[18,0,18,3]]}
["Rencana Ekspansi Jaringan"]
["Petunjuk"]
["Tulis cara Anda berencana memperluas jaringan kuartal ini (misalnya, melakukan lebih banyak panggilan telepon, melakukan perjalanan lainnya, dll.). Kemudian, setiap kali Anda mendapatkan kontak baru, ubah nomor Kontak Aktual yang Dibuat untuk melacak dan melihat seberapa dekat Anda dengan target."]
[]
["Bagaimana saya berencana untuk memperluas jaringan saya pada kuartal ini"]
["1. Lakukan lebih banyak panggilan telepon"]
["2. Bepergian lebih banyak"]
[]
[]
[]
[]
[]
[]
["Sasaran Kontak Triwulanan","Tenggat Waktu","Kontak Kuartalan Aktual Dibuat","Hasil"]
[20,{"$f":"TODAY()","v":"2021-07-14"},12,{"$f":"IF(tblGoals3[[#This Row],[Sasaran Kontak Triwulanan]]>0,tblGoals3[[#This Row],[Kontak Kuartalan Aktual Dibuat]]/tblGoals3[[#This Row],[Sasaran Kontak Triwulanan]],\"\")","v":{"v":0.6,"d":"60%"}},null,"0% - 25%\n26% - 50%\n51% - 75%\n76% - 100%\n\nPerubahan warna berdasarkan persentase yang tercapai"]
[{"$nulls":3},{"$f":"IF(tblGoals3[[#This Row],[Sasaran Kontak Triwulanan]]>0,tblGoals3[[#This Row],[Kontak Kuartalan Aktual Dibuat]]/tblGoals3[[#This Row],[Sasaran Kontak Triwulanan]],\"\")","v":""}]
[{"$nulls":3},{"$f":"IF(tblGoals3[[#This Row],[Sasaran Kontak Triwulanan]]>0,tblGoals3[[#This Row],[Kontak Kuartalan Aktual Dibuat]]/tblGoals3[[#This Row],[Sasaran Kontak Triwulanan]],\"\")","v":""}]
[]
["Refleksi pada hasil / Catatan untuk perbaikan"]
["Sudah dekat. Coba lakukan panggilan sekitar waktu makan siang saja."]

{"sheet":"Paket Jaringan Q3","index":6,"n_rows":20,"n_cols":6,"rows_kept":20,"merged":[[0,0,0,3],[2,0,2,3],[4,0,4,3],[14,5,17,5],[18,0,18,3]]}
["Rencana Ekspansi Jaringan"]
["Petunjuk"]
["Tulis cara Anda berencana memperluas jaringan kuartal ini (misalnya, melakukan lebih banyak panggilan telepon, melakukan perjalanan lainnya, dll.). Kemudian, setiap kali Anda mendapatkan kontak baru, ubah nomor Kontak Aktual yang Dibuat untuk melacak dan melihat seberapa dekat Anda dengan target."]
[]
["Bagaimana saya berencana untuk memperluas jaringan saya pada kuartal ini"]
["1. Lakukan lebih banyak panggilan telepon"]
["2. Bepergian lebih banyak"]
[]
[]
[]
[]
[]
[]
["Sasaran Kontak Triwulanan","Tenggat Waktu","Kontak Kuartalan Aktual Dibuat","Hasil"]
[20,{"$f":"TODAY()","v":"2021-07-14"},12,{"$f":"IF(tblGoals34[[#This Row],[Sasaran Kontak Triwulanan]]>0,tblGoals34[[#This Row],[Kontak Kuartalan Aktual Dibuat]]/tblGoals34[[#This Row],[Sasaran Kontak Triwulanan]],\"\")","v":{"v":0.6,"d":"60%"}},null,"0% - 25%\n26% - 50%\n51% - 75%\n76% - 100%\n\nPerubahan warna berdasarkan persentase yang tercapai"]
[{"$nulls":3},{"$f":"IF(tblGoals34[[#This Row],[Sasaran Kontak Triwulanan]]>0,tblGoals34[[#This Row],[Kontak Kuartalan Aktual Dibuat]]/tblGoals34[[#This Row],[Sasaran Kontak Triwulanan]],\"\")","v":""}]
[{"$nulls":3},{"$f":"IF(tblGoals34[[#This Row],[Sasaran Kontak Triwulanan]]>0,tblGoals34[[#This Row],[Kontak Kuartalan Aktual Dibuat]]/tblGoals34[[#This Row],[Sasaran Kontak Triwulanan]],\"\")","v":""}]
[]
["Refleksi pada hasil / Catatan untuk perbaikan"]
["Sudah dekat. Coba lakukan panggilan sekitar waktu makan siang saja."]

{"sheet":"Paket Jaringan Q4","index":7,"n_rows":20,"n_cols":6,"rows_kept":20,"merged":[[0,0,0,3],[2,0,2,3],[4,0,4,3],[14,5,17,5],[18,0,18,3]]}
["Rencana Ekspansi Jaringan"]
["Petunjuk"]
["Tulis cara Anda berencana memperluas jaringan kuartal ini (misalnya, melakukan lebih banyak panggilan telepon, melakukan perjalanan lainnya, dll.). Kemudian, setiap kali Anda mendapatkan kontak baru, ubah nomor Kontak Aktual yang Dibuat untuk melacak dan melihat seberapa dekat Anda dengan target."]
[]
["Bagaimana saya berencana untuk memperluas jaringan saya pada kuartal ini"]
["1. Lakukan lebih banyak panggilan telepon"]
["2. Bepergian lebih banyak"]
[]
[]
[]
[]
[]
[]
["Sasaran Kontak Triwulanan","Tenggat Waktu","Kontak Kuartalan Aktual Dibuat","Hasil"]
[20,{"$f":"TODAY()","v":"2021-07-14"},12,{"$f":"IF(tblGoals348[[#This Row],[Sasaran Kontak Triwulanan]]>0,tblGoals348[[#This Row],[Kontak Kuartalan Aktual Dibuat]]/tblGoals348[[#This Row],[Sasaran Kontak Triwulanan]],\"\")","v":{"v":0.6,"d":"60%"}},null,"0% - 25%\n26% - 50%\n51% - 75%\n76% - 100%\n\nPerubahan warna berdasarkan persentase yang tercapai"]
[{"$nulls":3},{"$f":"IF(tblGoals348[[#This Row],[Sasaran Kontak Triwulanan]]>0,tblGoals348[[#This Row],[Kontak Kuartalan Aktual Dibuat]]/tblGoals348[[#This Row],[Sasaran Kontak Triwulanan]],\"\")","v":""}]
[{"$nulls":3},{"$f":"IF(tblGoals348[[#This Row],[Sasaran Kontak Triwulanan]]>0,tblGoals348[[#This Row],[Kontak Kuartalan Aktual Dibuat]]/tblGoals348[[#This Row],[Sasaran Kontak Triwulanan]],\"\")","v":""}]
[]
["Refleksi pada hasil / Catatan untuk perbaikan"]
["Sudah dekat. Coba lakukan panggilan sekitar waktu makan siang saja."]